Cogmind - Beta 11.1 @@@ ROGUE MODE // 2022.04.23 @ 23:12:47 Player: Musaab Result: Destroyed by Y-45 Defender with Heavy Assault Rifle Performance ------------- Evolutions (1) 500 Regions Visited (2) 400 Robots Destroyed (25) 125 Value Destroyed (533) 533 Prototype IDs (2) 40 Alien Tech Used (0) 0 Bonus (35) 35 TOTAL SCORE: 1633 Bonus ------- High Alert Combat Kills 35 Cogmind --------- Core Integrity 0/400 Matter 1/300 Energy 56/100 System Corruption 3% Temperature Cool (9) Movement Core (250) Ox4 Location -9/Materials Parts ------- > --- POWER (1) -------- (None) > --- PROPULSION (4) --- (None) > --- UTILITY (2) ------ Heat Sink Medium Storage Unit > --- WEAPON (2) ------- Light Assault Rifle Light Assault Rifle > --- INVENTORY (10) --- Improved Ion Engine Heat Sink Small Storage Unit Terrain Scanner Small Laser Assault Rifle Peak State ------------ > --- POWER ------------ Light Ion Engine > --- PROPULSION ------- Light Treads Light Treads Light Treads > --- UTILITY ---------- Small Storage Unit Medium Storage Unit > --- WEAPON ----------- Heavy Assault Rifle Grenade Launcher > --- INVENTORY -------- Ion Engine Aluminum Leg Aluminum Leg Heat Sink Small Laser Assault Rifle Light Assault Rifle Light Assault Rifle Light Assault Rifle Grenade Launcher [Rating: 10] Favorites ----------- Power Ion Engine Engine Ion Engine Propulsion Light Treads Treads Light Treads Leg Aluminum Leg Wheel Compact Wheel Utility Small Storage Unit Device Heat Sink Storage Small Storage Unit Weapon Assault Rifle Energy Gun Small Laser Ballistic Gun Assault Rifle Launcher Grenade Launcher Build | -11 -10 -9 ------- Run | Scr Mat Mat Slots Evolved 2 | . . 2 Power . | . . . Propulsion 2 | . . 2 Utility . | . . . Weapon . | . . . Parts Attached 25 | 6 3 16 Power 3 | 1 1 1 Engine 3 | 1 1 1 Core . | . . . Reactor . | . . . Propulsion 7 | 2 . 5 Treads 3 | 2 . 1 Leg 3 | . . 3 Wheel 1 | . . 1 Hover . | . . . Flight . | . . . Utility 4 | 1 1 2 Device 2 | . . 2 Storage 2 | 1 1 . Processor . | . . . Hackware . | . . . Protection . | . . . Artifact . | . . . Weapon 11 | 2 1 8 Energy Gun 1 | 1 . . Energy Cannon . | . . . Ballistic Gun 8 | 1 . 7 Ballistic Cannon . | . . . Launcher 2 | . 1 1 Special Weapon . | . . . Impact Weapon . | . . . Slashing Weapon . | . . . Piercing Weapon . | . . . Special Melee Weapon . | . . . Unidentified Prototypes . | . . . Parts Lost 16 | . . 16 Power 2 | . . 2 Propulsion 7 | . . 7 Utility 2 | . . 2 Weapon 5 | . . 5 Highest Loss Streak 6 | . . 6 To Critical Strikes . | . . . Average Slot Usage (%) 83 | . 94 76 Engine 10 | . 14 9 Treads 19 | . 28 15 Leg 6 | . . 10 Wheel 1 | . . 2 Storage 22 | . 23 21 Energy Gun 1 | . 4 . Ballistic Gun 13 | . 14 12 Launcher 6 | . 9 5 Naked Turns . | . . . Heaviest Build 25 | 13 25 24 Greatest Support 60 | 40 40 60 Greatest Overweight (x) 5 | . . 5 Average Overweight (x) . | . . 1 Largest Inventory Capacity 10 | 8 10 10 Average Capacity 9 | 6 9 10 Most Carried 10 | 4 10 10 Average Carried 7 | 2 7 8 Final Capacity 10 | 8 10 10 Final Carried 10 | 4 10 6 Class Distribution -------------------- 83% | Mutant 16% | Scavenger-Mutant Dominant Class ---------------- Mutant | -10/Materials Mutant | -9/Materials Resources | -11 -10 -9 ----------- Run | Scr Mat Mat Matter Collected 480 | 219 71 190 Remotely . | . . . Salvage Created 514 | . 233 281 Parts 49 | . 30 19 Haulers Intercepted 1 | . 1 . Recyclers Shooed 2 | . 2 . Parts Field Recycled . | . . . Retrieved Matter . | . . . Parts Self-Destructed . | . . . Prevented . | . . . Kills | -11 -10 -9 ------- Run | Scr Mat Mat Combat Hostiles Destroyed 17 | . 11 6 Guns 6 | . 2 4 AOE 11 | . 9 2 Classes Destroyed 8 | . 7 1 Worker 1 | . 1 . Builder 2 | . 1 1 Hauler 1 | . 1 . Recycler 2 | . 1 1 Watcher 2 | . 1 1 Swarmer 6 | . 6 . Grunt 9 | . 5 4 Sentry 2 | . . 2 Best Kill Streak 5 | . 5 3 Combat Bots Only 3 | . 3 2 Max Kills in Single Turn 3 | . 3 2 Gunslinging . | . . . Exploded 2 | . 2 1 Melee . | . . . Uniques/NPCs Destroyed . | . . . Combat | -11 -10 -9 -------- Run | Scr Mat Mat Damage Taken 2155 | . 232 1923 Core 467 | . 66 401 Absorbed by Shields . | . . . Core Remaining (%) 86 | 100 73 . Volleys Fired 62 | . 21 41 Largest 2 | . 2 2 Hottest 53 | . 50 53 Shots Fired 94 | . 37 57 Gun 67 | . 21 46 Cannon . | . . . Launcher 27 | . 16 11 Special . | . . . Kinetic 67 | . 21 46 Thermal . | . . . Explosive 27 | . 16 11 Electromagnetic . | . . . Robot Hit Streak 16 | . 5 16 Robot Miss Streak 5 | . 5 2 Penetration Max . | . . . Secondary Targets 1 | . . 1 Max Gunslinging Chain 1 | . . 1 Shots Hit Robots 63 | . 18 45 Core Hits 46 | . 24 22 Critical Kills . | . . . Critical Parts Destroyed . | . . . Critical Strikes 1 | . . 1 Destroy 1 | . . 1 Melee Attacks . | . . . Impact . | . . . Slashing . | . . . Piercing . | . . . Sneak Attacks . | . . . Combat Hostiles . | . . . Follow-up Attacks . | . . . Damage Inflicted 1900 | . 1072 828 Guns 499 | . 130 369 Cannons . | . . . Explosions 1395 | . 942 453 Melee . | . . . Ramming 6 | . . 6 Kinetic 499 | . 130 369 Thermal . | . . . Explosive 1395 | . 942 453 Electromagnetic . | . . . Impact . | . . . Slashing . | . . . Piercing . | . . . Highest Corruption 3 | . . 3 Average Corruption 3 | . . 3 Corruption Purged . | . . . Corruption Blocked . | . . . Effects 5 | . . 5 Message Errors 1 | . . 1 Matter Fused 3 | . . 3 Heat Flow Errors 1 | . . 1 Overload Shots . | . . . Overflow Damage 34 | . 3 31 Projectiles . | . . . Explosions 34 | . 3 31 Melee . | . . . Knockbacks . | . . . Impact . | . . . Kinetic . | . . . Secondary . | . . . Self-Inflicted Damage 161 | . 20 141 Shots 9 | . 2 7 Rammed . | . . . Targets Rammed 4 | . . 4 Kicked 4 | . . 4 Crushed . | . . . Highest Temperature 230 | . 6 230 Average Temperature 37 | . 2 52 Received Heat Transfer 759 | . 84 675 Siege Activations . | . . . Robots Corrupted . | . . . Combat Hostiles . | . . . Parts Fried . | . . . Impact Corruptions . | . . . Robots Melted . | . . . Combat Hostiles . | . . . Parts Melted . | . . . Heat Transferred . | . . . Parts Sabotaged . | . . . Parts Stolen . | . . . Parts Stripped . | . . . Power Chain Reactions . | . . . Missiles Intercepted . | . . . Alert | -11 -10 -9 ------- Run | Scr Mat Mat Peak Influence 497 | . 497 469 Initial 209 | . . 209 Average 230 | . 193 281 Maximum Alert Level 2 | . 2 2 Low Security (%) 43 | 100 52 30 Level 1 43 | . 36 53 Level 2 13 | . 11 15 Level 3 . | . . . Level 4 . | . . . Level 5 . | . . . High Security . | . . . Max Security . | . . . Squads Dispatched 6 | . 4 2 Investigation 3 | . 3 . Extermination . | . . . Reinforcement 3 | . 1 2 Assault . | . . . Garrison . | . . . Intercept . | . . . Searches Triggered . | . . . Construction Impeded . | . . . Haulers Reinforced . | . . . Active Scanning Responses . | . . . Cargo Convoy Interrupts . | . . . Stealth | -11 -10 -9 --------- Run | Scr Mat Mat Distress Signals 4 | . . 4 Communications Jammed . | . . . Distress Signals . | . . . Times Spotted 27 | . 14 13 Peak Tracking Total 6 | . 5 6 Tactical Retreats . | . . . Traps | -11 -10 -9 ------- Run | Scr Mat Mat Traps Triggered 1 | . 1 . Indirectly . | . . . Trap Hack Attempts . | . . . Triggered . | . . . Disarmed . | . . . Reprogrammed . | . . . Reused . | . . . Traps Extracted . | . . . Installed . | . . . Triggered . | . . . Machines | -11 -10 -9 ---------- Run | Scr Mat Mat Machines Disabled 2 | . 2 . Max in Single Turn 1 | . 1 . Machines Sabotaged . | . . . Garrisons Compromised . | . . . Overloaded Fab Kills . | . . . Hacking | -11 -10 -9 --------- Run | Scr Mat Mat Machines Accessed 4 | . 2 2 Terminals 3 | . 2 1 Fabricators . | . . . Repair Stations . | . . . Recycling Units . | . . . Scanalyzers 1 | . . 1 Garrison Access . | . . . Total Hacks 15 | . 9 6 Successful 10 | . 6 4 Failed 5 | . 3 2 Catastrophic . | . . . Database Lockouts . | . . . Manual . | . . . Terminals 12 | . 9 3 Fabricators . | . . . Repair Stations . | . . . Recycling Units . | . . . Scanalyzers 3 | . . 3 Garrison Access . | . . . Terminal Hacks 9 | . 6 3 Record 2 | . 1 1 Prototype ID Bank 1 | . 1 . Terminal Index 1 | . 1 . Scanalyzer Index 1 | . 1 . Alert Level 1 | . 1 . Unreport Threat 1 | . . 1 Locate Traps 1 | . 1 . Reinforcement Status 1 | . . 1 Fabricator Hacks . | . . . Repair Station Hacks . | . . . Recycling Unit Hacks . | . . . Scanalyzer 1 | . . 1 Insert Component 1 | . . 1 Garrison Access Hacks . | . . . Unauthorized Hacks . | . . . Terminals . | . . . Fabricators . | . . . Repair Stations . | . . . Recycling Units . | . . . Scanalyzers . | . . . Garrison Access . | . . . Data Cores Recovered . | . . . Used . | . . . Hacking Detections 4 | . 2 2 Full Trace Events 4 | . 2 2 Feedback Events . | . . . Feedback Blocked . | . . . Robot Schematics Acquired . | . . . Robots Built . | . . . Authchips . | . . . Time . | . . . Total Robot Build Rating . | . . . Part Schematics Acquired . | . . . Parts Built . | . . . Authchips . | . . . Time . | . . . Total Part Build Rating . | . . . Parts Repaired . | . . . Time . | . . . Parts Recycled . | . . . Recycled Matter . | . . . Retrieved Matter . | . . . Retrieved Components . | . . . Parts Scanalyzed . | . . . Part Schematics Acquired . | . . . Parts Damaged . | . . . Bothacking | -11 -10 -9 ------------ Run | Scr Mat Mat Used RIF Installer . | . . . Robots Hacked . | . . . Non-combat . | . . . Combat . | . . . Robot Hacks Applied . | . . . Relay Couplers Released . | . . . Fabnet Peak Effective % . | . . . Robots Rewired . | . . . Allies Hacked . | . . . Hacks Repelled . | . . . Allies | -11 -10 -9 -------- Run | Scr Mat Mat Total Allies . | . . . Largest Group . | . . . Highest-Rated Group . | . . . Highest-Rated Ally . | . . . Total Orders . | . . . Ally Attacks . | . . . Total Damage . | . . . Kills . | . . . Allies Corrupted . | . . . Allies Melted . | . . . Intel | -11 -10 -9 ------- Run | Scr Mat Mat Robot Analysis Total . | . . . Derelict Logs Recovered . | . . . Drone Launches . | . . . Drone Recoveries . | . . . Exploration | -11 -10 -9 ------------- Run | Scr Mat Mat Turns Passed 967 | 80 309 578 Spaces Moved 422 | 44 150 228 Core 9 | 3 . 6 Treads 254 | 41 150 63 Legs 157 | . . 157 Wheels 2 | . . 2 Hover . | . . . Flight . | . . . Fastest Speed 50 | 50 160 115 Average Speed 178 | 152 160 196 Slowest Speed 300 | 160 160 300 Overloaded Moves . | . . . Propulsion Burnouts . | . . . Robots Hopped . | . . . Cave-ins Triggered 1 | . . 1 Exploration Rate (%) 20 | 6 34 21 Regions Visited 2 Branch Regions . Pre-discovered Areas . | . . . Known Exits Taken . | . . . Unknown Exits Taken 2 | 1 1 . Scrap Searched . | . . . Spaces Dug . | . . . Terrain Destroyed 120 | . 52 68 Melee . | . . . Projectile . | . . . AOE 120 | . 52 68 Terrain Rammed . | . . . Walls Destroyed . | . . . Machines Disabled . | . . . Actions | -11 -10 -9 --------- Run | Scr Mat Mat Total 537 | 54 182 301 Wait 6 | 1 . 5 Move 420 | 43 149 228 Hop . | . . . Pick Up 17 | 4 7 6 Fast Attach 9 | 6 1 2 Attach 11 | . . 11 Detach . | . . . Swap 5 | . 2 3 Drop 3 | . 2 1 Fire 62 | . 21 41 Melee . | . . . Ram . | . . . Kick 4 | . . 4 Crush . | . . . Escape Stasis . | . . . Rewire . | . . . Trap . | . . . Miscellaneous . | . . . Route ------- -11/Scrapyard -10/Materials -9/Materials History --------- Turn | Location | Event 17 | -11/Scrapyard | Discovered new exit (range 14) 81 | -11/Scrapyard | Entered Materials 313 | -10/Materials | Build established: Mutant 319 | -10/Materials | Discovered new exit (range 14) 390 | -10/Materials | Entered another Materials area 390 | -9/Materials | Evolved 2 slots: Propulsion x2 499 | -9/Materials | Crushed by falling debris 783 | -9/Materials | Core integrity fell below 50% 801 | -9/Materials | Lost 5 parts (1p3n1w) 963 | -9/Materials | Core integrity fell below 20% 968 | -9/Materials | Destroyed by Y-45 Defender with Heavy Assault Rifle Last Messages --------------- 00855_ Acquired Heat Sink. 00861_ Acquired Terrain Scanner. 00895_ O-16 Technician sends out distress signal. 00895_ O-16 Technician: "IFF HANDSHAKE FAILED. SECURING TERMINAL." 00899_ ALERT: Hostiles spotted, dispatching reinforcements to Terminal M005. 00909_ Critical hit (Burn: +37). 00915_ O-16 Technician destroyed. 00929_ Acquired Imp. Ion Engine. 00938_ Kicked G-34 Mercenary. 00940_ Aluminum Leg destroyed. 00940_ Kicked G-34 Mercenary. 00949_ Ion Engine destroyed. 00952_ Critical hit (Burn: +37). 00953_ Sml. Storage Unit destroyed. 00954_ G-34 Mercenary destroyed. 00954_ Switching to secondary target: Y-45 Defender. 00955_ Aluminum Leg destroyed. 00956_ Assault Rifle destroyed. 00956_ G-34 Mercenary destroyed. 00964_ Heat Sink destroyed. Map ----- +----------------------------------------------------+ | | | | | | | | | | | | | | | | | | | | | | | | | | | | | | | ?????????????????????????????????????????????????? | | ?????????????????????????????????????????????????? | | ?????????????????????##########??????????????????? | | ?????????????????????# #??????????????????? | | ?????????????????????# #??????????????????? | | ?????????????????????# #?????#######??????? | | ?????????????????????# #??#### ####?#### | | ?????????????????????#// #??# #?# | | ?????????????????????#|/ #??# ### | | ?????????????????????# !YY #??# ## | | ?????????????????????# %@g #??# ### | | ?????????????????????# *% #??# * # # | | ?????????????????????#####+####??# # # | | ?????????????+########## #???# + + | | ???????????? #???# # # | | ???????????? #???## # ## #### | | ???????????? #????######### ### | | ????????????############ #???????# T | | ???????????????????????##=%=##???????# "" | | ????????????????????????# #????????# ### ### | | ????????????????????????# #????????# ####+##### | | ????????????############# #????##### ## ! | | ??????????? #????# ### ## | | ??????????? ########## ## | | ??????????? # // | | ???????????? ############/########## # """ // | | ???????????????????????? ???## # # """ // | | ?????????????????????? """ /=?# # # """ | | ????????????????????# """ /= # ###### [ | | ????????????????????# """ # ! # ###### | | ????????????????????# ! # * #????# | | ???????????????????# # ##????# | | ???????????????????##? = % ###### | | ???????????????????????############ ## # # | | ????????????????????????? # | +----------------------------------------------------+ Best States ------------- Heat Dissipation 28 Energy Generation 10 Energy Capacity 250 Matter Stores 274 Matter Capacity 300 Sight Range 16 Terrain Scan Density 10 Evasion (%) 40 Recoil Reduction 3 Item Schematics ----------------- None Robot Schematics ------------------ None Fabricated ------------ Nothing Alien Tech Used ----------------- None Achievements -------------- None Challenges ------------ None Game ------ Seed EtherialRelayMace Manual? 0 Play Time 00:09:49 Cumulative 14.8 hours Start 2022.04.23 @ 23:03:14 End 2022.04.23 @ 23:12:47 Sessions 1 Manual Loads 0 Difficulty Rogue Special Mode None Game No. 35 Rogue 35 Adventurer 0 Explorer 0 Win Type - Total 0 Types 0/0/0/0/0/0/0/0/0 Lore% 5 Gallery% 20 Achievement% 14 Wizard Run 0 Options --------- ASCII 0 Keyboard 0 Movement Numpad Keybinds 0 Fullscreen 1 Font 24/Smallcaps Map View 113x50 Tactical HUD 1 Map Filters NONE Filters NONE Steam 1 RUN: 4d97bd35-d0d9-4358-9c25-b8e086cd989d